Workbook

Sheet Mapping
B2: Welcome to "Create Your Own Overall Similarities (OS) Perceptual Map"
B3: Follow the Steps in Yellow | Z3: =IF(D$18<>"",D$18,"") -> Coke | AA3: =IF(D19<>"",D19,"") -> Pepsi | AB3: =IF(Z3<>"",1,0) -> 1 | AC3: =IF(AA3<>"",1,0) -> 1 | AD3: =+AC3+AB3 -> 2 | AE3: =IF(D$20<>"",D$20,"") -> Sprite | AF3: =IF(D22<>"",D22,"") -> Pepsi Max | AG3: =IF(AE3<>"",1,0) -> 1 | AH3: =IF(AF3<>"",1,0) -> 1 | AI3: =+AH3+AG3 -> 2 | AJ3: =IF(D$22<>"",D$22,"") -> Pepsi Max | AK3: =IF(D29<>"",D29,"") ->  | AL3: =IF(AJ3<>"",1,0) -> 1 | AM3: =IF(AK3<>"",1,0) -> 0 | AN3: =+AM3+AL3 -> 1
B4: Please note that there is a YouTube video available on How to Use this Template | Z4: Coke | AA4: Sprite | AB4: =IF(Z4<>"",1,0) -> 1 | AC4: =IF(AA4<>"",1,0) -> 1 | AD4: =+AC4+AB4 -> 2 | AE4: Sprite | AG4: =IF(AE4<>"",1,0) -> 1 | AH4: =IF(AF4<>"",1,0) -> 0 | AI4: =+AH4+AG4 -> 1 | AJ4: =IF(D$23<>"",D$23,"") ->  | AK4: =IF(D24<>"",D24,"") ->  | AL4: =IF(AJ4<>"",1,0) -> 0 | AM4: =IF(AK4<>"",1,0) -> 0 | AN4: =+AM4+AL4 -> 0
B5: Only enter data/information in the Blue cells | Z5: Coke | AA5: Diet Coke | AB5: 1 | AC5: 1 | AD5: 2 | AE5: Sprite | AG5: 1 | AH5: 0 | AI5: 1 | AL5: 0 | AM5: 0 | AN5: 0
B6: The Grey cells provide additional information | Z6: Coke | AA6: Pepsi Max | AB6: 1 | AC6: 1 | AD6: 2 | AE6: Sprite | AG6: 1 | AH6: 0 | AI6: 1 | AL6: 0 | AM6: 0 | AN6: 0
C7: For more information on Perceptual Maps visit: | G7: www.perceptualmaps.com | K7: Or email: geoff@perceptualmaps.com | Z7: Coke | AB7: 1 | AC7: 0 | AD7: 1 | AE7: Sprite | AG7: 1 | AH7: 0 | AI7: 1 | AL7: 0 | AM7: 0 | AN7: 0
Z8: Coke | AB8: 1 | AC8: 0 | AD8: 1 | AE8: Sprite | AG8: 1 | AH8: 0 | AI8: 1 | AL8: 0 | AM8: 0 | AN8: 0
Z9: Coke | AB9: 1 | AC9: 0 | AD9: 1 | AE9: Sprite | AG9: 1 | AH9: 0 | AI9: 1 | AL9: 0 | AM9: 0 | AN9: 0
B10: STEP ONE | C10: Enter the Title of Your Map | E10: Soft Drink Year 1 | Z10: Coke | AB10: 1 | AC10: 0 | AD10: 1 | AE10: Sprite | AG10: 1 | AH10: 0 | AI10: 1 | AJ10: =IF(D$24<>"",D$24,"") ->  | AK10: =IF(D25<>"",D25,"") ->  | AL10: 0 | AM10: 0 | AN10: 0
E11: (This is an example only. Simply type over this map title.) | Z11: Coke | AB11: 1 | AC11: 0 | AD11: 1 | AE11: =IF(D$21<>"",D$21,"") -> Diet Coke | AF11: =IF(D22<>"",D22,"") -> Pepsi Max | AG11: 1 | AH11: 1 | AI11: 2 | AJ11: =IF(D$24<>"",D$24,"") ->  | AK11: =IF(D26<>"",D26,"") ->  | AL11: 0 | AM11: 0 | AN11: 0
Z12: Coke | AB12: 1 | AC12: 0 | AD12: 1 | AE12: Diet Coke | AG12: 1 | AH12: 0 | AI12: 1 | AJ12: =IF(D$24<>"",D$24,"") ->  | AK12: =IF(D27<>"",D27,"") ->  | AL12: 0 | AM12: 0 | AN12: 0
Z13: Coke | AB13: 1 | AC13: 0 | AD13: 1 | AE13: Diet Coke | AG13: 1 | AH13: 0 | AI13: 1 | AJ13: =IF(D$24<>"",D$24,"") ->  | AK13: =IF(D28<>"",D28,"") ->  | AL13: 0 | AM13: 0 | AN13: 0
Z14: =IF(D$19<>"",D$19,"") -> Pepsi | AA14: =IF(D20<>"",D20,"") -> Sprite | AB14: 1 | AC14: 1 | AD14: 2 | AE14: Diet Coke | AG14: 1 | AH14: 0 | AI14: 1 | AJ14: =IF(D$24<>"",D$24,"") ->  | AK14: =IF(D29<>"",D29,"") ->  | AL14: 0 | AM14: 0 | AN14: 0
B15: STEP TWO | C15: Enter Brands Below | E15: STEP THREE ==> | G15: Compare EACH pair of brands below Note: If you have less than 12 brands some blanks cells will appear - only enter the data for the pairs | Z15: Pepsi | AA15: Diet Coke | AB15: 1 | AC15: 1 | AD15: 2 | AE15: Diet Coke | AG15: 1 | AH15: 0 | AI15: 1 | AJ15: =IF(D$25<>"",D$25,"") ->  | AK15: =IF(D26<>"",D26,"") ->  | AL15: 0 | AM15: 0 | AN15: 0
C16: You may enter up to 12 brands | F16: Compare using a 1-9 scale, where 1= Virtually the Same and 9 = Virtually Opposites | Z16: Pepsi | AA16: Pepsi Max | AB16: 1 | AC16: 1 | AD16: 2 | AE16: Diet Coke | AG16: 1 | AH16: 0 | AI16: 1 | AJ16: =IF(D$25<>"",D$25,"") ->  | AK16: =IF(D27<>"",D27,"") ->  | AL16: 0 | AM16: 0 | AN16: 0
C17: Some examples provided, simply type over the top to enter your own brands | F17: Please note that the brand pair sets below should update automatically when you enter the brands in Step Two (left). If not, press F9 at the top of your keyboard to recalculate the spreadsheet. | Z17: Pepsi | AB17: 1 | AC17: 0 | AD17: 1 | AE17: Diet Coke | AG17: 1 | AH17: 0 | AI17: 1 | AJ17: =IF(D$25<>"",D$25,"") ->  | AK17: =IF(D28<>"",D28,"") ->  | AL17: 0 | AM17: 0 | AN17: 0
C18: 1 | D18: Coke | F18: =IF(AD3=2,Z3,"") -> Coke | G18: =IF(AD3=2,AA3,"") -> Pepsi | H18: 1 | I18: =IF(AI3=2,AE3,"") -> Sprite | J18: =IF(AI3=2,AF3,"") -> Pepsi Max | K18: 6 | L18: =IF(AN3=2,AJ3,"") ->  | M18: =IF(AN3=2,AK3,"") ->  | Z18: Pepsi | AB18: 1 | AC18: 0 | AD18: 1 | AE18: Diet Coke | AG18: 1 | AH18: 0 | AI18: 1 | AJ18: =IF(D$25<>"",D$25,"") ->  | AK18: =IF(D29<>"",D29,"") ->  | AL18: 0 | AM18: 0 | AN18: 0
C19: 2 | D19: Pepsi | F19: =IF(AD4=2,Z4,"") -> Coke | G19: =IF(AD4=2,AA4,"") -> Sprite | H19: 9 | I19: =IF(AI4=2,AE4,"") ->  | J19: =IF(AI4=2,AF4,"") ->  | L19: =IF(AN4=2,AJ4,"") ->  | M19: =IF(AN4=2,AK4,"") ->  | Z19: Pepsi | AB19: 1 | AC19: 0 | AD19: 1 | AE19: =IF(D$22<>"",D$22,"") -> Pepsi Max | AF19: =IF(D23<>"",D23,"") ->  | AG19: 1 | AH19: 0 | AI19: 1 | AJ19: =IF(D$26<>"",D$26,"") ->  | AK19: =IF(D27<>"",D27,"") ->  | AL19: 0 | AM19: 0 | AN19: 0
C20: 3 | D20: Sprite | F20: Coke | G20: Diet Coke | H20: 3 | Z20: Pepsi | AB20: 1 | AC20: 0 | AD20: 1 | AE20: Pepsi Max | AG20: 1 | AH20: 0 | AI20: 1 | AJ20: =IF(D$26<>"",D$26,"") ->  | AK20: =IF(D28<>"",D28,"") ->  | AL20: 0 | AM20: 0 | AN20: 0
C21: 4 | D21: Diet Coke | F21: Coke | G21: Pepsi Max | H21: 4 | Z21: Pepsi | AB21: 1 | AC21: 0 | AD21: 1 | AE21: Pepsi Max | AG21: 1 | AH21: 0 | AI21: 1 | AJ21: =IF(D$26<>"",D$26,"") ->  | AK21: =IF(D29<>"",D29,"") ->  | AL21: 0 | AM21: 0 | AN21: 0
C22: 5 | D22: Pepsi Max | Z22: Pepsi | AB22: 1 | AC22: 0 | AD22: 1 | AE22: Pepsi Max | AG22: 1 | AH22: 0 | AI22: 1 | AJ22: =IF(D$27<>"",D$27,"") ->  | AK22: =IF(D28<>"",D28,"") ->  | AL22: 0 | AM22: 0 | AN22: 0
C23: 6 | Z23: Pepsi | AB23: 1 | AC23: 0 | AD23: 1 | AE23: Pepsi Max | AG23: 1 | AH23: 0 | AI23: 1 | AJ23: =IF(D$27<>"",D$27,"") ->  | AK23: =IF(D29<>"",D29,"") ->  | AL23: 0 | AM23: 0 | AN23: 0
C24: 7 | Z24: =IF(D$20<>"",D$20,"") -> Sprite | AA24: =IF(D21<>"",D21,"") -> Diet Coke | AB24: 1 | AC24: 1 | AD24: 2 | AE24: Pepsi Max | AG24: 1 | AH24: 0 | AI24: 1 | AJ24: =IF(D$28<>"",D$28,"") ->  | AK24: =IF(D29<>"",D29,"") ->  | AL24: 0 | AM24: 0 | AN24: 0
C25: 8
C26: 9 | I26: Diet Coke | J26: Pepsi Max | K26: 1.25
C27: 10
C28: 11
C29: 12 | F29: Pepsi | G29: Sprite | H29: 7
C30: Compare using a 1-9 scale | F30: Pepsi | G30: Diet Coke | H30: 5
C31: 1 = Virtually the same | F31: Pepsi | G31: Pepsi Max | H31: 2.5
C32: 2 = Quite similar
C33: 3 = Reasonably similar
C34: 4 = Somewhat similar
C35: 5 = Neither (or unsure)
C36: 6 = Somewhat dissimilar
C37: 7 = Reasonably dissimilar
C38: 8 = Quite dissimilar
C39: 9 = Virtually opposites | F39: Sprite | G39: Diet Coke | H39: 5
F44: Important Note for Apple Mac users
D45: STEP FOUR | E45: Ensure that your spreadsheet has the 'Solver add-in' loaded
E46: In the top menu of Excel click "File" then select "Options" and then select "Add-Ins"
E47: Then click 'Go' next to 'Manage Excel Add-ins' and select the 'Solver Add-in' (as shown below)
B48: STEP FIVE | D48: Follow the sequence as shown | E48: Please note that these options are standard with every version of Excel, including the student version | O48: ATTENTION APPLE MAC USERS!!!
O49: Do not follow the instructions in Step Four
O50: Instead, select 'Tools', then 'Add-ins' and then 'Solver'
O51: You will also need to follow Step Six below
H61: Part C: Select Go
D62: Part A: Select Options | K62: Part D: Tick Solver Add-in | AI62: =+AH63 -> Coke | AJ62: =+AH64 -> Pepsi | AK62: =+AH65 -> Sprite | AL62: =+AH66 -> Diet Coke | AM62: =+AH67 -> Pepsi Max | AN62: =+AH68 ->  | AO62: =+AH69 ->  | AP62: =+AH70 ->  | AQ62: =+AH71 ->  | AR62: =+AH72 ->  | AS62: =+AH73 ->  | AT62: =+AH74 -> 
E63: Part B: Select Add-ins | AD63: 3 | AE63: 3 | AG63: 1 | AH63: =IF(D18="","",+D18) -> Coke | AI63: 0
AD64: =IF($AI64="",0,+$AI64) -> 1 | AE64: =IF($AI64="",0,0) -> 0 | AG64: =+AG63+1 -> 2 | AH64: Pepsi | AI64: =+H18 -> 1 | AJ64: 0
AD65: =IF($AI65="",0,0) -> 0 | AE65: =IF($AI65="",0,+$AI65) -> 9 | AG65: =+AG64+1 -> 3 | AH65: Sprite | AI65: =+H19 -> 9 | AJ65: =+H29 -> 7 | AK65: 0
AD66: =IF($AI66="",0,+$AI66) -> 3 | AE66: =IF($AI66="",0,0) -> 0 | AG66: 4 | AH66: Diet Coke | AI66: 3 | AJ66: =+H30 -> 5 | AK66: =+H39 -> 5 | AL66: 0
AD67: =IF($AI67="",0,0) -> 0 | AE67: =IF($AI67="",0,+$AI67) -> 4 | AG67: 5 | AH67: Pepsi Max | AI67: 4 | AJ67: 2.5 | AK67: =+K18 -> 6 | AL67: =+K26 -> 1.25 | AM67: 0
AD68: =IF($AI68="",0,+$AI68) -> 0 | AE68: =IF($AI68="",0,0) -> 0 | AG68: 6 | AI68: 0 | AJ68: 0 | AK68: =+K19 -> 0 | AL68: =+K27 -> 0 | AM68: =+K34 -> 0 | AN68: 0
D69: STEP FIVE | E69: IMPORTANT: Save the spreadsheet and exit Excel, then reopen the spreadsheet | AD69: =IF($AI69="",0,0) -> 0 | AE69: =IF($AI69="",0,+$AI69) -> 0 | AG69: 7 | AI69: 0 | AJ69: 0 | AK69: 0 | AL69: 0 | AM69: =+K35 -> 0 | AN69: =+N19 -> 0 | AO69: 0
E70: Note: You need to save, exit and reopen Excel in order for the Solver Add-in to be loaded into the spreadsheet | AD70: =IF($AI70="",0,+$AI70) -> 0 | AE70: =IF($AI70="",0,0) -> 0 | AG70: 8 | AI70: 0 | AJ70: 0 | AK70: 0 | AL70: 0 | AM70: 0 | AN70: =+N20 -> 0 | AO70: =+N25 -> 0 | AP70: 0
E71: Solver should then appear under Data in the top menu, as shown below | AD71: =IF($AI71="",0,0) -> 0 | AE71: =IF($AI71="",0,+$AI71) -> 0 | AG71: 9 | AI71: 0 | AJ71: 0 | AK71: 0 | AL71: 0 | AM71: 0 | AN71: 0 | AO71: =+N26 -> 0 | AP71: =+N30 -> 0 | AQ71: 0
AD72: =IF($AI72="",0,+$AI72) -> 0 | AE72: =IF($AI72="",0,0) -> 0 | AG72: 10 | AI72: 0 | AJ72: 0 | AK72: 0 | AL72: 0 | AM72: 0 | AN72: 0 | AO72: 0 | AP72: =+N31 -> 0 | AQ72: =+N34 -> 0 | AR72: 0
AD73: =IF($AI73="",0,0) -> 0 | AE73: =IF($AI73="",0,+$AI73) -> 0 | AG73: 11 | AI73: 0 | AJ73: 0 | AK73: 0 | AL73: 0 | AM73: 0 | AN73: 0 | AO73: 0 | AP73: 0 | AQ73: =+N35 -> 0 | AR73: =+N37 -> 0 | AS73: 0
AD74: =IF($AI74="",0,+$AI74) -> 0 | AE74: =IF($AI74="",0,0) -> 0 | AG74: 12 | AI74: 0 | AJ74: 0 | AK74: 0 | AL74: 0 | AM74: =+N18 -> 0 | AN74: 0 | AO74: 0 | AP74: 0 | AQ74: 0 | AR74: =+N38 -> 0 | AS74: =+N39 -> 0 | AT74: 0
D79: STEP SIX
E84: Note: It may take up to 15 seconds to calculate
AI87: =SUM(AI63:AI86) -> 17 | AJ87: =SUM(AJ63:AJ86) -> 14.5 | AK87: 11 | AL87: 1.25 | AM87: 0 | AN87: 0 | AO87: 0 | AP87: 0 | AQ87: 0 | AR87: 0 | AS87: 0
Z89: Final points | AK89: =+AF90 -> 1 | AL89: =+AF91 -> 1 | AM89: =+AF92 -> 1 | AN89: =+AF93 -> 1 | AO89: =+AF94 -> 1 | AP89: =+AF95 -> 0 | AQ89: =+AF96 -> 0 | AR89: =+AF97 -> 0 | AS89: =+AF98 -> 0 | AT89: =+AF99 -> 0 | AU89: =+AF100 -> 0 | AV89: =+AF101 -> 0
Z90: =+IF($AF90=1,(AC90+$AD$117)*$AD$119,"") -> 2.278731481 | AA90: =+IF($AF90=1,(AD90+$AD$117)*$AD$119,"") -> 0.8754903862 | AC90: =IF($AF90=1,AI90,"") -> 1.705559718 | AD90: =IF($AF90=1,AJ90,"") -> 0.03947812283 | AF90: =IF(D18="",0,1) -> 1 | AH90: =+AH63 -> Coke | AI90: 1.705559718 | AJ90: 0.03947812283
Z91: =+IF($AF91=1,(AC91+$AD$117)*$AD$119,"") -> 1.222142747 | AA91: =+IF($AF91=1,(AD91+$AD$117)*$AD$119,"") -> 1.524120175 | AC91: =IF($AF91=1,AI91,"") -> 0.4510617918 | AD91: 0.8096024849 | AF91: =IF(D19="",0,1) -> 1 | AH91: =+AH64 -> Pepsi | AI91: 0.4510617918 | AJ91: 0.8096024849 | AK91: =IFERROR(IF(OR($AF91=0,AK$89=0),"",SQRT(($AI$90-$AI91)^2+($AJ$90-$AJ91)^2)),"") -> 1.472024653
Z92: 0.8422403195 | AA92: 8 | AC92: 0 | AD92: 8.49847664 | AF92: 1 | AH92: Sprite | AI92: 0 | AJ92: 8.49847664 | AK92: =IFERROR(IF(OR($AF92=0,AK$89=0),"",SQRT(($AI$90-$AI92)^2+($AJ$90-$AJ92)^2)),"") -> 8.629228811 | AL92: =IFERROR(IF(OR($AF92=0,AL$89=0),"",SQRT(($AI$91-$AI92)^2+($AJ$91-$AJ92)^2)),"") -> 7.702093386 | AQ92: `
Z93: 3.486092229 | AA93: 4.193325753 | AC93: 3.1390707 | AD93: 3.978775839 | AF93: 1 | AH93: Diet Coke | AI93: 3.1390707 | AJ93: 3.978775839 | AK93: 4.192018635 | AL93: =IFERROR(IF(OR($AF93=0,AL$89=0),"",SQRT(($AI$91-$AI93)^2+($AJ$91-$AJ93)^2)),"") -> 4.155604846 | AM93: =IFERROR(IF(OR($AF93=0,AM$89=0),"",SQRT(($AI$92-$AI93)^2+($AJ$92-$AJ93)^2)),"") -> 5.502859274
Z94: 2.63591841 | AA94: 3.595891947 | AC94: 2.129651181 | AD94: 3.269436958 | AF94: 1 | AH94: Pepsi Max | AI94: 2.129651181 | AJ94: 3.269436958 | AK94: 3.257681329 | AL94: 2.977993951 | AM94: =IFERROR(IF(OR($AF94=0,AM$89=0),"",SQRT(($AI$92-$AI94)^2+($AJ$92-$AJ94)^2)),"") -> 5.646084498 | AN94: =IFERROR(IF(OR($AF94=0,AN$89=0),"",SQRT(($AI$93-$AI94)^2+($AJ$93-$AJ94)^2)),"") -> 1.233729879
AF95: 0 | AI95: 0 | AJ95: 0 | AN95: =IFERROR(IF(OR($AF95=0,AN$89=0),"",SQRT(($AI$93-$AI95)^2+($AJ$93-$AJ95)^2)),"") ->  | AO95: =IFERROR(IF(OR($AF95=0,AO$89=0),"",SQRT(($AI$94-$AI95)^2+($AJ$94-$AJ95)^2)),"") -> 
AF96: 0 | AI96: 0 | AJ96: 0 | AN96: =IFERROR(IF(OR($AF96=0,AN$89=0),"",SQRT(($AI$93-$AI96)^2+($AJ$93-$AJ96)^2)),"") ->  | AO96: =IFERROR(IF(OR($AF96=0,AO$89=0),"",SQRT(($AI$94-$AI96)^2+($AJ$94-$AJ96)^2)),"") ->  | AP96: =IFERROR(IF(OR($AF96=0,AP$89=0),"",SQRT(($AI$95-$AI96)^2+($AJ$95-$AJ96)^2)),"") -> 
M97: STEP SEVEN | O97: Copy Your Map to Word or PP | AF97: 0 | AI97: 0 | AJ97: 0 | AP97: =IFERROR(IF(OR($AF97=0,AP$89=0),"",SQRT(($AI$95-$AI97)^2+($AJ$95-$AJ97)^2)),"") ->  | AQ97: =IFERROR(IF(OR($AF97=0,AQ$89=0),"",SQRT(($AI$96-$AI97)^2+($AJ$96-$AJ97)^2)),"") -> 
M98: To maintain the formatting of the map | AF98: 0 | AI98: 0 | AJ98: 0 | AQ98: =IFERROR(IF(OR($AF98=0,AQ$89=0),"",SQRT(($AI$96-$AI98)^2+($AJ$96-$AJ98)^2)),"") ->  | AR98: =IFERROR(IF(OR($AF98=0,AR$89=0),"",SQRT(($AI$97-$AI98)^2+($AJ$97-$AJ98)^2)),"") -> 
M99: when you copy it: | AF99: 0 | AI99: 0 | AJ99: 0 | AR99: =IFERROR(IF(OR($AF99=0,AR$89=0),"",SQRT(($AI$97-$AI99)^2+($AJ$97-$AJ99)^2)),"") ->  | AS99: =IFERROR(IF(OR($AF99=0,AS$89=0),"",SQRT(($AI$98-$AI99)^2+($AJ$98-$AJ99)^2)),"") -> 
M100: 1 | N100: Click on the edge of the map | AF100: 0 | AI100: 0 | AJ100: 0 | AS100: =IFERROR(IF(OR($AF100=0,AS$89=0),"",SQRT(($AI$98-$AI100)^2+($AJ$98-$AJ100)^2)),"") ->  | AT100: =IFERROR(IF(OR($AF100=0,AT$89=0),"",SQRT(($AI$99-$AI100)^2+($AJ$99-$AJ100)^2)),"") -> 
N101: to highlight it | AF101: 0 | AI101: 1.737652274 | AJ101: 6.521136756 | AK101: =IFERROR(IF(OR($AF101=0,AK$89=0),"",SQRT(($AI$90-$AI101)^2+($AJ$90-$AJ101)^2)),"") ->  | AT101: =IFERROR(IF(OR($AF101=0,AT$89=0),"",SQRT(($AI$99-$AI101)^2+($AJ$99-$AJ101)^2)),"") ->  | AU101: =IFERROR(IF(OR($AF101=0,AU$89=0),"",SQRT(($AI$100-$AI101)^2+($AJ$100-$AJ101)^2)),"") -> 
AV102: =IFERROR(IF(OR($AF102=0,AV$89=0),"",SQRT(($AI$101-$AI102)^2+($AJ$101-$AJ102)^2)),"") -> 
M103: 2 | N103: Select 'copy' from the above menu | AV103: =IFERROR(IF(OR($AF103=0,AV$89=0),"",SQRT(($AI$101-$AI103)^2+($AJ$101-$AJ103)^2)),"") ->  | AW103: =IFERROR(IF(OR($AF103=0,AW$89=0),"",SQRT(($AI$102-$AI103)^2+($AJ$102-$AJ103)^2)),"") -> 
AW104: =IFERROR(IF(OR($AF104=0,AW$89=0),"",SQRT(($AI$102-$AI104)^2+($AJ$102-$AJ104)^2)),"") ->  | AX104: =IFERROR(IF(OR($AF104=0,AX$89=0),"",SQRT(($AI$103-$AI104)^2+($AJ$103-$AJ104)^2)),"") -> 
M105: 3 | N105: Go to your Word or P/Point document | AX105: =IFERROR(IF(OR($AF105=0,AX$89=0),"",SQRT(($AI$103-$AI105)^2+($AJ$103-$AJ105)^2)),"") ->  | AY105: =IFERROR(IF(OR($AF105=0,AY$89=0),"",SQRT(($AI$104-$AI105)^2+($AJ$104-$AJ105)^2)),"") -> 
AY106: =IFERROR(IF(OR($AF106=0,AY$89=0),"",SQRT(($AI$104-$AI106)^2+($AJ$104-$AJ106)^2)),"") ->  | AZ106: =IFERROR(IF(OR($AF106=0,AZ$89=0),"",SQRT(($AI$105-$AI106)^2+($AJ$105-$AJ106)^2)),"") -> 
M107: 4 | N107: Select 'paste', then 'paste special' | AZ107: =IFERROR(IF(OR($AF107=0,AZ$89=0),"",SQRT(($AI$105-$AI107)^2+($AJ$105-$AJ107)^2)),"") ->  | BA107: =IFERROR(IF(OR($AF107=0,BA$89=0),"",SQRT(($AI$106-$AI107)^2+($AJ$106-$AJ107)^2)),"") -> 
N108: and choose 'picture'. | BA108: =IFERROR(IF(OR($AF108=0,BA$89=0),"",SQRT(($AI$106-$AI108)^2+($AJ$106-$AJ108)^2)),"") ->  | BB108: =IFERROR(IF(OR($AF108=0,BB$89=0),"",SQRT(($AI$107-$AI108)^2+($AJ$107-$AJ108)^2)),"") -> 
BB109: =IFERROR(IF(OR($AF109=0,BB$89=0),"",SQRT(($AI$107-$AI109)^2+($AJ$107-$AJ109)^2)),"") ->  | BC109: =IFERROR(IF(OR($AF109=0,BC$89=0),"",SQRT(($AI$108-$AI109)^2+($AJ$108-$AJ109)^2)),"") -> 
BC110: =IFERROR(IF(OR($AF110=0,BC$89=0),"",SQRT(($AI$108-$AI110)^2+($AJ$108-$AJ110)^2)),"") ->  | BD110: =IFERROR(IF(OR($AF110=0,BD$89=0),"",SQRT(($AI$109-$AI110)^2+($AJ$109-$AJ110)^2)),"") -> 
Z111: =+IF($AF111=1,(AC111+$AD$117)*$AD$119,"") ->  | BD111: =IFERROR(IF(OR($AF111=0,BD$89=0),"",SQRT(($AI$109-$AI111)^2+($AJ$109-$AJ111)^2)),"") ->  | BE111: =IFERROR(IF(OR($AF111=0,BE$89=0),"",SQRT(($AI$110-$AI111)^2+($AJ$110-$AJ111)^2)),"") -> 
BE112: =IFERROR(IF(OR($AF112=0,BE$89=0),"",SQRT(($AI$110-$AI112)^2+($AJ$110-$AJ112)^2)),"") ->  | BF112: =IFERROR(IF(OR($AF112=0,BF$89=0),"",SQRT(($AI$111-$AI112)^2+($AJ$111-$AJ112)^2)),"") -> 
Z113: =+IF($AF113=1,(AC113+$AD$117)*$AD$119,"") ->  | AA113: =+IF($AF113=1,(AD113+$AD$117)*$AD$119,"") ->  | AC113: =IF($AF113=1,AI113,"") ->  | AD113: =IF($AF113=1,AJ113,"") ->  | BF113: =IFERROR(IF(OR($AF113=0,BF$89=0),"",SQRT(($AI$111-$AI113)^2+($AJ$111-$AJ113)^2)),"") ->  | BG113: =IFERROR(IF(OR($AF113=0,BG$89=0),"",SQRT(($AI$112-$AI113)^2+($AJ$112-$AJ113)^2)),"") -> 
Z114: Min | AA114: =MIN(Z90:AA112) -> 0.8422403195 | AC114: Min | AD114: =MIN(AC90:AD112) -> 0 | AK114: =IF(AK89=1,SUM(AK90:AK113),"") -> 17.55095343 | AL114: =IF(AL89=1,SUM(AL90:AL113),"") -> 14.83569218 | AM114: 11.14894377 | AN114: 1.233729879 | AO114: 0
Z115: Max | AA115: =MAX(Z90:AA112) -> 8 | AC115: Max | AD115: =MAX(AC90:AD112) -> 8.49847664
AA116: =+AA115-AA114 -> 7.157759681 | AD116: =+AD115-AD114 -> 8.49847664
AC117: Down | AD117: =1-AD114 -> 1
AC118: Top | AD118: =+AD117+AD115 -> 9.49847664
AC119: To 9 | AD119: =8/AD118 -> 0.8422403195
AH148: =+AH90 -> Coke | AK148: =IFERROR(AK90^2,"") -> 0 | AL148: 0 | AM148: 0 | AN148: 0 | AO148: 0 | AP148: 0 | AQ148: 0 | AR148: 0 | AS148: 0 | AT148: 0 | AU148: 0
AH149: Pepsi | AK149: =IFERROR(AK91^2,"") -> 2.166856579 | AL149: 0 | AM149: 0 | AN149: 0 | AO149: 0 | AP149: 0 | AQ149: 0 | AR149: 0 | AS149: 0 | AT149: 0 | AU149: 0
AH150: Sprite | AK150: =IFERROR(AK92^2,"") -> 74.46358987 | AL150: 59.32224252 | AM150: 0 | AN150: 0 | AO150: 0 | AP150: 0 | AR150: 0 | AS150: 0 | AT150: 0 | AU150: 0
AH151: Diet Coke | AK151: =IFERROR(AK93^2,"") -> 17.57302023 | AL151: 17.26905164 | AM151: 30.28146019 | AN151: 0 | AO151: 0 | AP151: 0 | AQ151: 0 | AR151: 0 | AS151: 0 | AT151: 0 | AU151: 0
AH152: Pepsi Max | AK152: =IFERROR(AK94^2,"") -> 10.61248764 | AL152: 8.86844797 | AM152: 31.87827016 | AN152: 1.522089414 | AO152: 0 | AP152: 0 | AQ152: 0 | AR152: 0 | AS152: 0 | AT152: 0 | AU152: 0
AK153: =IFERROR(AK95^2,"") ->  | AP153: 0 | AQ153: 0 | AR153: 0 | AS153: 0 | AT153: 0 | AU153: 0
AK154: =IFERROR(AK96^2,"") ->  | AQ154: 0 | AR154: 0 | AS154: 0 | AT154: 0 | AU154: 0
AK155: =IFERROR(AK97^2,"") ->  | AR155: 0 | AS155: 0 | AT155: 0 | AU155: 0
AK156: =IFERROR(AK98^2,"") ->  | AS156: 0 | AT156: 0 | AU156: 0
AK157: =IFERROR(AK99^2,"") ->  | AT157: 0 | AU157: 0
AK158: =IFERROR(AK100^2,"") ->  | AU158: 0
AK159: =IFERROR(AK101^2,"") -> 
AH172: =SUM(AK172:AU172) -> 253.9575162 | AK172: =SUM(AK148:AK171) -> 104.8159543 | AL172: =SUM(AL148:AL171) -> 85.45974213 | AM172: 62.15973035 | AN172: 1.522089414 | AO172: 0 | AP172: 0 | AQ172: 0 | AR172: 0 | AS172: 0 | AT172: 0 | AU172: 0
AH175: =+AH148 -> Coke | AK175: =IFERROR((AK90-AI63)^2,"") -> 0 | AL175: =IFERROR((AL90-AJ63)^2,"") -> 0 | AM175: =IFERROR((AM90-AK63)^2,"") -> 0 | AN175: =IFERROR((AN90-AL63)^2,"") -> 0 | AO175: =IFERROR((AO90-AM63)^2,"") -> 0 | AP175: =IFERROR((AP90-AN63)^2,"") -> 0 | AQ175: =IFERROR((AQ90-AO63)^2,"") -> 0 | AR175: =IFERROR((AR90-AP63)^2,"") -> 0 | AS175: =IFERROR((AS90-AQ63)^2,"") -> 0 | AT175: =IFERROR((AT90-AR63)^2,"") -> 0 | AU175: =IFERROR((AU90-AS63)^2,"") -> 0
AH176: Pepsi | AK176: =IFERROR((AK91-AI64)^2,"") -> 0.2228072731 | AL176: 0 | AM176: 0 | AN176: 0 | AO176: 0 | AP176: 0 | AQ176: 0 | AR176: 0 | AS176: 0 | AT176: 0 | AU176: 0
AH177: Sprite | AK177: 0.1374712746 | AL177: 0.4929351221 | AM177: 0 | AN177: 0 | AO177: 0 | AP177: 0 | AR177: 0 | AS177: 0 | AT177: 0 | AU177: 0
AH178: Diet Coke | AK178: 1.420908426 | AL178: 0.7130031753 | AM178: 0.2528674496 | AN178: 0 | AO178: 0 | AP178: 0 | AQ178: 0 | AR178: 0 | AS178: 0 | AT178: 0 | AU178: 0
AH179: Pepsi Max | AK179: 0.5510370088 | AL179: 0.2284782169 | AM179: 0.1252561826 | AN179: 0.0002647168384 | AO179: 0 | AP179: 0 | AQ179: 0 | AR179: 0 | AS179: 0 | AT179: 0 | AU179: 0
AP180: 0 | AQ180: 0 | AR180: 0 | AS180: 0 | AT180: 0 | AU180: 0
AQ181: 0 | AR181: 0 | AS181: 0 | AT181: 0 | AU181: 0
AR182: 0 | AS182: 0 | AT182: 0 | AU182: 0
AS183: 0 | AT183: 0 | AU183: 0
AT184: 0 | AU184: 0
AU185: 0
AH199: =SUM(AK199:BH199) -> 4.145028846 | AK199: =SUM(AK175:AK198) -> 2.332223982 | AL199: =SUM(AL175:AL198) -> 1.434416514 | AM199: 0.3781236323 | AN199: 0.0002647168384 | AO199: 0 | AP199: 0 | AQ199: 0 | AR199: 0 | AS199: 0 | AT199: 0 | AU199: 0
AH202: =SQRT(AH199/AH172) -> 0.1277565699 | AK202: 1 | AL202: =+AH175 -> Coke | AM202: =+Z90 -> 2.278731481 | AN202: =+AA90 -> 0.8754903862
AK203: 2 | AL203: =+AH176 -> Pepsi | AM203: =+Z91 -> 1.222142747 | AN203: 1.524120175
AK204: 3 | AL204: Sprite | AM204: =+Z92 -> 0.8422403195 | AN204: 8
AK205: 4 | AL205: Diet Coke | AM205: =+Z93 -> 3.486092229 | AN205: 4.193325753
AK206: 5 | AL206: Pepsi Max | AM206: =+Z94 -> 2.63591841 | AN206: 3.595891947
AK207: 6 | AM207: =+Z95 -> 
AK208: 7 | AM208: =+Z96 -> 
AK209: 8 | AM209: =+Z97 -> 
AK210: 9 | AM210: =+Z98 -> 
AK211: 10 | AM211: =+Z99 -> 
AK212: 11 | AM212: =+Z100 -> 
AK213: 12 | AM213: =+Z101 -> 
AN214: =+AA102 -> 
AN215: =+AA103 -> 
AN216: =+AA104 -> 
AN217: =+AA105 -> 
AN218: =+AA106 -> 
AN219: =+AA107 -> 
AN220: =+AA108 -> 
AN221: =+AA109 -> 
AN222: =+AA110 -> 
AN223: =+AA111 -> 
AN224: =+AA112 -> 
AN225: =+AA113 -> 
